[Event "Early-Titled-Tuesday-Blitz-October-17-2023"]
[Site "Chess.com"]
[Date "2023.10.17"]
[Round "3"]
[White "ural58"]
[Black "MdSharifHossain"]
[Result "1-0"]
[WhiteElo "2534"]
[BlackElo "2196"]
[TimeControl "180+1"]
[EndTime "8:29:16 PDT"]
[Termination "ural58 won by resignation"]

1. e4 {[%clk 0:02:58.1]} 1... e5 {[%clk 0:02:59.9]} 2. Nf3 {[%clk 0:02:57.6]}
2... Nc6 {[%clk 0:03:00.3]} 3. Bc4 {[%clk 0:02:57.5]} 3... Nf6 {[%clk
0:02:57.7]} 4. Ng5 {[%clk 0:02:57.5]} 4... d5 {[%clk 0:02:57.8]} 5. exd5 {[%clk
0:02:57.4]} 5... Na5 {[%clk 0:02:56.8]} 6. Bb5+ {[%clk 0:02:57.4]} 6... c6
{[%clk 0:02:56.6]} 7. dxc6 {[%clk 0:02:57.4]} 7... bxc6 {[%clk 0:02:57.5]} 8.
Bd3 {[%clk 0:02:57.6]} 8... Nd5 {[%clk 0:02:54.9]} 9. h4 {[%clk 0:02:54.7]} 9...
h6 {[%clk 0:02:43.3]} 10. Qh5 {[%clk 0:02:48.4]} 10... Qc7 {[%clk 0:02:27.3]}
11. Nxf7 {[%clk 0:02:33.3]} 11... Nf4 {[%clk 0:02:20.8]} 12. Qxe5+ {[%clk
0:02:33.1]} 12... Qxe5+ {[%clk 0:02:19.6]} 13. Nxe5 {[%clk 0:02:33.2]} 13... Bd6
{[%clk 0:02:18.7]} 14. Ng6 {[%clk 0:02:22.9]} 14... Nxd3+ {[%clk 0:02:07.8]} 15.
cxd3 {[%clk 0:02:22.7]} 15... Rg8 {[%clk 0:02:07.9]} 16. b4 {[%clk 0:02:10.8]}
16... Bf5 {[%clk 0:01:51.8]} 17. bxa5 {[%clk 0:02:07.2]} 17... Bxg6 {[%clk
0:01:51]} 18. Ba3 {[%clk 0:02:05.8]} 18... Be5 {[%clk 0:01:38.9]} 19. Nc3 {[%clk
0:02:05.1]} 19... Bxd3 {[%clk 0:01:37.3]} 20. Rh3 {[%clk 0:02:05.2]} 20... O-O-O
{[%clk 0:01:34.7]} 21. O-O-O {[%clk 0:01:48]} 21... Bf6 {[%clk 0:01:12.2]} 22.
g4 {[%clk 0:01:28.9]} 22... Rge8 {[%clk 0:01:05]} 23. f4 {[%clk 0:01:28.1]}
23... Kc7 {[%clk 0:00:55.2]} 24. Bc5 {[%clk 0:01:20.1]} 24... Kb7 {[%clk
0:00:48.8]} 25. a6+ {[%clk 0:01:10.5]} 25... Kxa6 {[%clk 0:00:43.9]} 26. g5
{[%clk 0:01:10.5]} 26... Bf5 {[%clk 0:00:34.7]} 27. gxf6 {[%clk 0:01:02.9]}
27... Bxh3 {[%clk 0:00:33.1]} 28. fxg7 {[%clk 0:01:03.2]} 28... Rg8 {[%clk
0:00:17.6]} 29. Rg1 {[%clk 0:01:03]} 29... Rd7 {[%clk 0:00:12.9]} 30. Bf8 {[%clk
0:01:00.5]} 30... Kb7 {[%clk 0:00:11.3]} 31. Rg6 {[%clk 0:00:59.4]} 31... h5
{[%clk 0:00:11.1]} 32. Ne4 {[%clk 0:00:58.5]} 32... Bf5 {[%clk 0:00:10.7]} 33.
Nc5+ {[%clk 0:00:58.3]} 33... Kc7 {[%clk 0:00:09.7]} 34. Nxd7 {[%clk 0:00:52.4]}
34... Bxg6 {[%clk 0:00:09.2]} 35. Nf6 {[%clk 0:00:52.6]} 35... Bf7 {[%clk
0:00:08.9]} 36. a3 {[%clk 0:00:49.8]} 36... a6 {[%clk 0:00:06.1]} 37. f5 {[%clk
0:00:49.6]} 37... Kd8 {[%clk 0:00:05.4]} 38. Kc2 {[%clk 0:00:48]} 38... Bd5
{[%clk 0:00:04.1]} 39. Kc3 {[%clk 0:00:47]} 39... Kc7 {[%clk 0:00:03.6]} 40.
Nxd5+ {[%clk 0:00:46.3]} 40... cxd5 {[%clk 0:00:03.4]} 41. f6 {[%clk 0:00:47]}
1-0

[Event "Early-Titled-Tuesday-Blitz-October-17-2023"]
[Site "Chess.com"]
[Date "2023.10.17"]
[Round "3"]
[White "Mr_Lion22"]
[Black "pankajfm"]
[Result "0-1"]
[WhiteElo "2506"]
[BlackElo "2141"]
[TimeControl "180+1"]
[EndTime "8:29:16 PDT"]
[Termination "pankajfm won by checkmate"]

1. d4 {[%clk 0:03:00.9]} 1... Nf6 {[%clk 0:02:58.9]} 2. c4 {[%clk 0:03:01.8]}
2... g6 {[%clk 0:02:58.6]} 3. Nc3 {[%clk 0:03:02.3]} 3... Bg7 {[%clk 0:02:58.4]}
4. e4 {[%clk 0:03:02.8]} 4... d6 {[%clk 0:02:59]} 5. Be2 {[%clk 0:03:03.1]} 5...
O-O {[%clk 0:02:59.6]} 6. Be3 {[%clk 0:03:03.8]} 6... a6 {[%clk 0:02:58.2]} 7.
a4 {[%clk 0:02:38]} 7... c5 {[%clk 0:02:54.2]} 8. dxc5 {[%clk 0:02:36]} 8... Qa5
{[%clk 0:02:51.4]} 9. cxd6 {[%clk 0:02:09.7]} 9... Nxe4 {[%clk 0:02:33.8]} 10.
dxe7 {[%clk 0:02:10.6]} 10... Re8 {[%clk 0:02:34]} 11. Bd4 {[%clk 0:02:06.1]}
11... Nxc3 {[%clk 0:02:08.4]} 12. bxc3 {[%clk 0:01:59.5]} 12... Nc6 {[%clk
0:02:06.7]} 13. Bxg7 {[%clk 0:01:58.7]} 13... Kxg7 {[%clk 0:02:07.6]} 14. Qd2
{[%clk 0:01:53.4]} 14... Rxe7 {[%clk 0:02:06.2]} 15. Nf3 {[%clk 0:01:50.8]}
15... Bg4 {[%clk 0:02:02.1]} 16. O-O {[%clk 0:01:51.2]} 16... Rae8 {[%clk
0:02:02.2]} 17. Rfe1 {[%clk 0:01:46.3]} 17... Kg8 {[%clk 0:01:36.2]} 18. h3
{[%clk 0:01:18.4]} 18... Bxf3 {[%clk 0:01:35.6]} 19. Bxf3 {[%clk 0:01:19.3]}
19... Ne5 {[%clk 0:01:22.8]} 20. Bd5 {[%clk 0:01:15.9]} 20... Qc5 {[%clk
0:01:14.3]} 21. Qd4 {[%clk 0:00:21.9]} 21... Nf3+ {[%clk 0:00:37.2]} 22. gxf3
{[%clk 0:00:15.9]} 22... Rxe1+ {[%clk 0:00:38.1]} 23. Rxe1 {[%clk 0:00:16.1]}
23... Rxe1+ {[%clk 0:00:39]} 24. Kg2 {[%clk 0:00:16.8]} 24... Qe7 {[%clk
0:00:34.7]} 25. Qf4 {[%clk 0:00:11.2]} 25... h5 {[%clk 0:00:27.2]} 26. c5 {[%clk
0:00:11]} 26... Re5 {[%clk 0:00:26.6]} 27. c4 {[%clk 0:00:11]} 27... Rf5 {[%clk
0:00:25.5]} 28. Qb8+ {[%clk 0:00:10.7]} 28... Kg7 {[%clk 0:00:25.1]} 29. Qxb7
{[%clk 0:00:09.4]} 29... Qxc5 {[%clk 0:00:24.9]} 30. Qxa6 {[%clk 0:00:08.4]}
30... Rg5+ {[%clk 0:00:24.5]} 31. Kf1 {[%clk 0:00:08.8]} 31... Qd4 {[%clk
0:00:22.3]} 32. Ke2 {[%clk 0:00:06.9]} 32... Rg2 {[%clk 0:00:18.5]} 33. Qb7
{[%clk 0:00:05.3]} 33... Rxf2+ {[%clk 0:00:18.5]} 34. Ke1 {[%clk 0:00:05.6]}
34... Qd2# {[%clk 0:00:18.6]} 0-1

[Event "Early-Titled-Tuesday-Blitz-October-17-2023"]
[Site "Chess.com"]
[Date "2023.10.17"]
[Round "3"]
[White "Hasangatin_Ramil"]
[Black "Firouzja2003"]
[Result "0-1"]
[WhiteElo "2722"]
[BlackElo "3077"]
[TimeControl "180+1"]
[EndTime "8:29:17 PDT"]
[Termination "Firouzja2003 won on time"]

1. e4 {[%clk 0:03:00.9]} 1... c6 {[%clk 0:02:56.1]} 2. d4 {[%clk 0:02:52.1]}
2... d5 {[%clk 0:02:54.6]} 3. Nd2 {[%clk 0:02:52.5]} 3... Qa5 {[%clk 0:02:51.3]}
4. c3 {[%clk 0:02:51.6]} 4... dxe4 {[%clk 0:02:47.7]} 5. Nxe4 {[%clk 0:02:52.5]}
5... Bf5 {[%clk 0:02:47.6]} 6. Ng3 {[%clk 0:02:52.1]} 6... Bg6 {[%clk 0:02:47]}
7. Bc4 {[%clk 0:02:50.9]} 7... Nd7 {[%clk 0:02:46.8]} 8. N1e2 {[%clk 0:02:50.7]}
8... Ngf6 {[%clk 0:02:41]} 9. Nf4 {[%clk 0:02:50.4]} 9... e5 {[%clk 0:02:26.4]}
10. Nxg6 {[%clk 0:02:48.9]} 10... hxg6 {[%clk 0:02:27.3]} 11. Qb3 {[%clk
0:02:40.5]} 11... O-O-O {[%clk 0:02:25.4]} 12. Bxf7 {[%clk 0:02:34.5]} 12...
exd4 {[%clk 0:02:25.5]} 13. O-O {[%clk 0:02:31.7]} 13... Bd6 {[%clk 0:02:14.7]}
14. cxd4 {[%clk 0:02:18.6]} 14... Rh4 {[%clk 0:02:10.3]} 15. Bxg6 {[%clk
0:02:03.2]} 15... Bc7 {[%clk 0:01:47.9]} 16. Qe6 {[%clk 0:01:36.4]} 16... Kb8
{[%clk 0:01:29.5]} 17. Qf5 {[%clk 0:01:34.4]} 17... Qb4 {[%clk 0:01:22.8]} 18.
Bg5 {[%clk 0:01:33.6]} 18... Rxd4 {[%clk 0:01:22.5]} 19. Be3 {[%clk 0:01:11.3]}
19... Rd5 {[%clk 0:01:14.2]} 20. Qf3 {[%clk 0:00:46.4]} 20... Ne5 {[%clk
0:01:11]} 21. Qf5 {[%clk 0:00:46.3]} 21... Neg4 {[%clk 0:01:04.3]} 22. Qf3
{[%clk 0:00:41]} 22... Qxb2 {[%clk 0:00:40.4]} 23. Rab1 {[%clk 0:00:36.7]} 23...
Qe5 {[%clk 0:00:33.2]} 24. Rfe1 {[%clk 0:00:32.2]} 24... Qd6 {[%clk 0:00:30.8]}
25. Bf5 {[%clk 0:00:14.4]} 25... Nxe3 {[%clk 0:00:30.7]} 26. Qxe3 {[%clk
0:00:13.1]} 26... Bb6 {[%clk 0:00:30.7]} 27. Qf3 {[%clk 0:00:12.4]} 27... Rd2
{[%clk 0:00:30.6]} 28. Rf1 {[%clk 0:00:11]} 28... Rxa2 {[%clk 0:00:27.9]} 29.
Ne4 {[%clk 0:00:09.6]} 29... Nxe4 {[%clk 0:00:28]} 30. Bxe4 {[%clk 0:00:10.2]}
30... Rf8 {[%clk 0:00:27.6]} 31. Qd3 {[%clk 0:00:07.7]} 31... Qxd3 {[%clk
0:00:27.3]} 32. Bxd3 {[%clk 0:00:08.6]} 32... Rfxf2 {[%clk 0:00:26.4]} 33. Rxf2
{[%clk 0:00:08.4]} 33... Bxf2+ {[%clk 0:00:27]} 34. Kf1 {[%clk 0:00:07.2]} 34...
Kc7 {[%clk 0:00:25]} 35. Be4 {[%clk 0:00:07.4]} 35... Bd4 {[%clk 0:00:23]} 36.
h4 {[%clk 0:00:05.2]} 36... b5 {[%clk 0:00:22]} 0-1

[Event "Early-Titled-Tuesday-Blitz-October-17-2023"]
[Site "Chess.com"]
[Date "2023.10.17"]
[Round "3"]
[White "karinachess1"]
[Black "MikaelyanArman"]
[Result "1-0"]
[WhiteElo "2610"]
[BlackElo "2853"]
[TimeControl "180+1"]
[EndTime "8:29:17 PDT"]
[Termination "karinachess1 won on time"]

1. d4 {[%clk 0:03:00.9]} 1... d5 {[%clk 0:02:59.6]} 2. c4 {[%clk 0:03:00.8]}
2... c6 {[%clk 0:03:00.2]} 3. Nf3 {[%clk 0:03:00.5]} 3... Nf6 {[%clk 0:03:00.6]}
4. g3 {[%clk 0:03:01.1]} 4... g6 {[%clk 0:02:58.8]} 5. Bg2 {[%clk 0:02:59.7]}
5... dxc4 {[%clk 0:02:57.6]} 6. Ne5 {[%clk 0:02:47.6]} 6... Be6 {[%clk 0:02:52]}
7. Na3 {[%clk 0:02:47.4]} 7... Bg7 {[%clk 0:02:46.4]} 8. Naxc4 {[%clk
0:02:40.9]} 8... Nfd7 {[%clk 0:02:39.7]} 9. O-O {[%clk 0:02:35.4]} 9... Nxe5
{[%clk 0:02:39.3]} 10. Nxe5 {[%clk 0:02:36.3]} 10... Nd7 {[%clk 0:02:39.5]} 11.
Nf3 {[%clk 0:02:12.4]} 11... O-O {[%clk 0:02:31.5]} 12. Re1 {[%clk 0:02:10.7]}
12... Nb6 {[%clk 0:02:11.2]} 13. Bd2 {[%clk 0:01:39.2]} 13... a5 {[%clk
0:02:04.5]} 14. Bc3 {[%clk 0:01:34.3]} 14... Nd5 {[%clk 0:02:00.2]} 15. e4
{[%clk 0:01:30.5]} 15... Nxc3 {[%clk 0:01:59.7]} 16. bxc3 {[%clk 0:01:31.4]}
16... Bc4 {[%clk 0:01:53.8]} 17. Qd2 {[%clk 0:01:27.2]} 17... a4 {[%clk
0:01:49.2]} 18. h4 {[%clk 0:01:21.8]} 18... Ra5 {[%clk 0:01:43.9]} 19. Rab1
{[%clk 0:01:17.2]} 19... Qc7 {[%clk 0:01:33.5]} 20. Rb4 {[%clk 0:01:12.1]} 20...
b5 {[%clk 0:01:28.7]} 21. h5 {[%clk 0:01:11.1]} 21... Rd8 {[%clk 0:01:25.8]} 22.
Qg5 {[%clk 0:01:02.8]} 22... h6 {[%clk 0:01:18.2]} 23. Qg4 {[%clk 0:01:00.1]}
23... Be6 {[%clk 0:01:15.7]} 24. Qh4 {[%clk 0:00:43.3]} 24... g5 {[%clk
0:01:16]} 25. Nxg5 {[%clk 0:00:39.4]} 25... hxg5 {[%clk 0:01:16.9]} 26. Qxg5
{[%clk 0:00:40.3]} 26... f6 {[%clk 0:01:15.3]} 27. Qh4 {[%clk 0:00:24.3]} 27...
Bh6 {[%clk 0:01:14.3]} 28. d5 {[%clk 0:00:21.7]} 28... c5 {[%clk 0:00:40.6]} 29.
dxe6 {[%clk 0:00:16.5]} 29... cxb4 {[%clk 0:00:40.8]} 30. Qg4+ {[%clk
0:00:16.9]} 30... Kh8 {[%clk 0:00:41.5]} 31. Qg6 {[%clk 0:00:17.1]} 31... Bf8
{[%clk 0:00:40.5]} 32. Bh3 {[%clk 0:00:14]} 32... Bg7 {[%clk 0:00:08.7]} 33. Bf5
{[%clk 0:00:12.1]} 33... Kg8 {[%clk 0:00:07.3]} 34. h6 {[%clk 0:00:11.5]} 1-0

[Event "Early-Titled-Tuesday-Blitz-October-17-2023"]
[Site "Chess.com"]
[Date "2023.10.17"]
[Round "3"]
[White "ozates"]
[Black "dosto07"]
[Result "1-0"]
[WhiteElo "2758"]
[BlackElo "2539"]
[TimeControl "180+1"]
[EndTime "8:29:19 PDT"]
[Termination "ozates won on time"]

1. e4 {[%clk 0:03:00.9]} 1... e5 {[%clk 0:02:57.2]} 2. Nf3 {[%clk 0:02:57.8]}
2... Nc6 {[%clk 0:02:57.5]} 3. Nc3 {[%clk 0:02:58.2]} 3... Nf6 {[%clk
0:02:56.9]} 4. a3 {[%clk 0:02:57.8]} 4... g6 {[%clk 0:02:56.2]} 5. d4 {[%clk
0:02:57.5]} 5... exd4 {[%clk 0:02:56.4]} 6. Nxd4 {[%clk 0:02:58.4]} 6... Bg7
{[%clk 0:02:56.8]} 7. Nxc6 {[%clk 0:02:58.2]} 7... bxc6 {[%clk 0:02:56.2]} 8.
Bd3 {[%clk 0:02:58.9]} 8... O-O {[%clk 0:02:55.8]} 9. O-O {[%clk 0:02:59.1]}
9... d6 {[%clk 0:02:45.4]} 10. f4 {[%clk 0:02:56.7]} 10... Rb8 {[%clk
0:02:41.9]} 11. Qe1 {[%clk 0:02:54]} 11... Re8 {[%clk 0:02:39.3]} 12. Qg3 {[%clk
0:02:47.5]} 12... c5 {[%clk 0:02:31.7]} 13. Kh1 {[%clk 0:02:43.6]} 13... Bb7
{[%clk 0:02:31.5]} 14. e5 {[%clk 0:02:25.8]} 14... dxe5 {[%clk 0:02:07.9]} 15.
fxe5 {[%clk 0:02:26.5]} 15... Nh5 {[%clk 0:02:08.1]} 16. Qf2 {[%clk 0:02:27.1]}
16... Bxe5 {[%clk 0:01:56]} 17. Qxf7+ {[%clk 0:02:27.2]} 17... Kh8 {[%clk
0:01:56.4]} 18. Bxg6 {[%clk 0:02:11.6]} 18... hxg6 {[%clk 0:01:44.6]} 19. Qxg6
{[%clk 0:02:11.8]} 19... Qh4 {[%clk 0:01:39.4]} 20. Qh6+ {[%clk 0:01:54.5]}
20... Kg8 {[%clk 0:01:38.6]} 21. Qg6+ {[%clk 0:01:46]} 21... Ng7 {[%clk
0:01:29.6]} 22. Qf7+ {[%clk 0:01:41.7]} 22... Kh8 {[%clk 0:01:23]} 23. Bf4
{[%clk 0:01:37.9]} 23... Rf8 {[%clk 0:01:06.9]} 24. Bxe5 {[%clk 0:01:37.9]}
24... Rxf7 {[%clk 0:00:58]} 25. Rxf7 {[%clk 0:01:38.8]} 25... Rg8 {[%clk
0:00:46.9]} 26. Rxc7 {[%clk 0:01:32.4]} 26... Bxg2+ {[%clk 0:00:44.2]} 27. Kxg2
{[%clk 0:01:28.6]} 27... Qg5+ {[%clk 0:00:43.5]} 28. Bg3 {[%clk 0:01:28.4]}
28... Nf5 {[%clk 0:00:39.4]} 29. Ne4 {[%clk 0:01:24.9]} 29... Qg4 {[%clk
0:00:27.9]} 30. Rh7+ {[%clk 0:01:22.9]} 30... Kxh7 {[%clk 0:00:27.7]} 31. Nf6+
{[%clk 0:01:23.8]} 31... Kh6 {[%clk 0:00:26.9]} 32. Nxg4+ {[%clk 0:01:24.7]}
32... Rxg4 {[%clk 0:00:26.9]} 33. Re1 {[%clk 0:01:13.6]} 33... Nd4 {[%clk
0:00:21]} 34. c3 {[%clk 0:01:13.3]} 34... Nb3 {[%clk 0:00:20.7]} 35. Kf3 {[%clk
0:01:11]} 35... Rg7 {[%clk 0:00:18.9]} 36. Bf4+ {[%clk 0:01:08.1]} 36... Kh7
{[%clk 0:00:16.5]} 37. h4 {[%clk 0:01:06.2]} 37... Rb7 {[%clk 0:00:15.9]} 38. h5
{[%clk 0:01:02.4]} 38... c4 {[%clk 0:00:15.6]} 39. Re6 {[%clk 0:00:56]} 39...
Nc5 {[%clk 0:00:14.9]} 40. Rc6 {[%clk 0:00:54.6]} 40... Nd3 {[%clk 0:00:14.1]}
41. Rxc4 {[%clk 0:00:53.7]} 41... Nxb2 {[%clk 0:00:13.8]} 42. Rb4 {[%clk
0:00:53.1]} 42... Rxb4 {[%clk 0:00:11.4]} 43. cxb4 {[%clk 0:00:53.7]} 43... Nc4
{[%clk 0:00:11.2]} 44. Bc1 {[%clk 0:00:51.1]} 44... Kg7 {[%clk 0:00:10.2]} 45.
Ke4 {[%clk 0:00:49.1]} 45... Kf6 {[%clk 0:00:10.2]} 46. Kd5 {[%clk 0:00:47.6]}
46... Nb6+ {[%clk 0:00:09.8]} 47. Kc6 {[%clk 0:00:47.2]} 47... Na4 {[%clk
0:00:10]} 48. h6 {[%clk 0:00:45.5]} 48... Kg6 {[%clk 0:00:09.8]} 49. Kb7 {[%clk
0:00:43.2]} 1-0

[Event "Early-Titled-Tuesday-Blitz-October-17-2023"]
[Site "Chess.com"]
[Date "2023.10.17"]
[Round "3"]
[White "whitemirrorninja"]
[Black "DKmirl"]
[Result "1-0"]
[WhiteElo "2509"]
[BlackElo "2278"]
[TimeControl "180+1"]
[EndTime "8:29:19 PDT"]
[Termination "whitemirrorninja won on time"]

1. e4 {[%clk 0:03:00.9]} 1... c5 {[%clk 0:02:59.9]} 2. b3 {[%clk 0:02:59.2]}
2... Nc6 {[%clk 0:02:56.5]} 3. Bb2 {[%clk 0:02:59.3]} 3... d6 {[%clk 0:02:54.4]}
4. f4 {[%clk 0:02:58.8]} 4... Nf6 {[%clk 0:02:49.1]} 5. Nc3 {[%clk 0:02:57.7]}
5... e5 {[%clk 0:02:36.9]} 6. fxe5 {[%clk 0:02:50]} 6... dxe5 {[%clk 0:02:36.4]}
7. Nf3 {[%clk 0:02:50.7]} 7... Bd6 {[%clk 0:02:28]} 8. Bc4 {[%clk 0:02:50.7]}
8... O-O {[%clk 0:02:27.2]} 9. O-O {[%clk 0:02:50.8]} 9... Nd4 {[%clk 0:02:24]}
10. Nd5 {[%clk 0:02:46.1]} 10... Nxe4 {[%clk 0:02:08.2]} 11. Qe1 {[%clk
0:02:33.3]} 11... Ng5 {[%clk 0:01:39.7]} 12. Nxg5 {[%clk 0:02:26.7]} 12... Qxg5
{[%clk 0:01:38.5]} 13. Ne3 {[%clk 0:02:19.8]} 13... h5 {[%clk 0:01:21.8]} 14. h4
{[%clk 0:01:58.7]} 14... Qg6 {[%clk 0:01:11.7]} 15. Bd3 {[%clk 0:01:53]} 15...
e4 {[%clk 0:01:06.1]} 16. Bc4 {[%clk 0:01:48.3]} 16... Bg3 {[%clk 0:01:04.3]}
17. Qd1 {[%clk 0:01:48.5]} 17... Bxh4 {[%clk 0:00:52.8]} 18. Be2 {[%clk
0:01:44.7]} 18... Bg4 {[%clk 0:00:21.6]} 19. Bxg4 {[%clk 0:01:40.2]} 19... hxg4
{[%clk 0:00:21.4]} 20. Qxg4 {[%clk 0:01:41]} 20... Qxg4 {[%clk 0:00:18.9]} 21.
Nxg4 {[%clk 0:01:41.7]} 21... Nxc2 {[%clk 0:00:17.9]} 22. Rac1 {[%clk
0:01:42.4]} 22... Nb4 {[%clk 0:00:15.6]} 23. Rxc5 {[%clk 0:01:41.4]} 23... Nd3
{[%clk 0:00:15.7]} 24. Rh5 {[%clk 0:01:39.8]} 24... Nxb2 {[%clk 0:00:13]} 25.
Rxh4 {[%clk 0:01:40]} 25... f5 {[%clk 0:00:12]} 26. Ne3 {[%clk 0:01:38.3]} 26...
g6 {[%clk 0:00:12.2]} 27. g4 {[%clk 0:01:35.6]} 27... f4 {[%clk 0:00:10.8]} 28.
Nd5 {[%clk 0:01:36.3]} 28... f3 {[%clk 0:00:09.6]} 29. g5 {[%clk 0:01:36.1]}
29... Rf5 {[%clk 0:00:07.4]} 30. Nf6+ {[%clk 0:01:35.8]} 30... Kf7 {[%clk
0:00:06.4]} 31. Nxe4 {[%clk 0:01:33.4]} 31... Re8 {[%clk 0:00:05]} 32. Nd6+
{[%clk 0:01:33.3]} 32... Ke7 {[%clk 0:00:05]} 33. Nxf5+ {[%clk 0:01:32.9]} 33...
gxf5 {[%clk 0:00:05.9]} 34. Rxf3 {[%clk 0:01:32.7]} 34... Rg8 {[%clk 0:00:06]}
35. Rxf5 {[%clk 0:01:31.7]} 35... Ke6 {[%clk 0:00:05.9]} 36. Rhf4 {[%clk
0:01:24.3]} 36... Nd3 {[%clk 0:00:04.8]} 37. Rf3 {[%clk 0:01:21.5]} 37... Ne5
{[%clk 0:00:04.1]} 38. Rf1 {[%clk 0:01:18.5]} 38... Nf7 {[%clk 0:00:02.1]} 39.
Rxf7 {[%clk 0:01:16.4]} 39... Rxg5+ {[%clk 0:00:02]} 40. Kh2 {[%clk 0:01:17.1]}
40... Rh5+ {[%clk 0:00:02.3]} 41. Kg3 {[%clk 0:01:17.8]} 41... Rg5+ {[%clk
0:00:02.7]} 42. Kh4 {[%clk 0:01:18.5]} 42... Rg8 {[%clk 0:00:02.7]} 43. R7f6+
{[%clk 0:01:18.6]} 43... Ke5 {[%clk 0:00:03]} 44. R1f5+ {[%clk 0:01:14.9]} 44...
Kd4 {[%clk 0:00:02.9]} 45. Rd6+ {[%clk 0:01:13.1]} 45... Ke4 {[%clk 0:00:02.9]}
46. Rg5 {[%clk 0:01:13.4]} 46... Rh8+ {[%clk 0:00:02.5]} 47. Kg4 {[%clk
0:01:14.1]} 47... Rh2 {[%clk 0:00:02.2]} 48. Kg3 {[%clk 0:01:09.6]} 48... Rh1
{[%clk 0:00:02.6]} 49. Rg4+ {[%clk 0:01:05.6]} 49... Ke5 {[%clk 0:00:02]} 50.
Rd7 {[%clk 0:01:06.2]} 50... Rg1+ {[%clk 0:00:01.3]} 51. Kf3 {[%clk 0:01:06.9]}
51... Rf1+ {[%clk 0:00:01.6]} 52. Ke2 {[%clk 0:01:07.1]} 52... Ra1 {[%clk
0:00:01.6]} 53. Rxb7 {[%clk 0:01:03.8]} 53... Rxa2 {[%clk 0:00:02.1]} 54. Rb5+
{[%clk 0:01:04]} 54... Kf6 {[%clk 0:00:01.9]} 55. Rc4 {[%clk 0:01:04.5]} 1-0

[Event "Early-Titled-Tuesday-Blitz-October-17-2023"]
[Site "Chess.com"]
[Date "2023.10.17"]
[Round "3"]
[White "LeoLV10"]
[Black "Roedor"]
[Result "1-0"]
[WhiteElo "2578"]
[BlackElo "2408"]
[TimeControl "180+1"]
[EndTime "8:29:22 PDT"]
[Termination "LeoLV10 won by resignation"]

1. e4 {[%clk 0:03:00.9]} 1... e5 {[%clk 0:02:57.8]} 2. Nf3 {[%clk 0:03:00.3]}
2... Nc6 {[%clk 0:02:57.7]} 3. Bb5 {[%clk 0:03:00.3]} 3... Nf6 {[%clk
0:02:57.4]} 4. O-O {[%clk 0:02:58.4]} 4... Nxe4 {[%clk 0:02:57]} 5. d4 {[%clk
0:02:59]} 5... Nd6 {[%clk 0:02:57]} 6. Bxc6 {[%clk 0:02:57.2]} 6... dxc6 {[%clk
0:02:57.9]} 7. dxe5 {[%clk 0:02:57.7]} 7... Nf5 {[%clk 0:02:58.4]} 8. Qe2 {[%clk
0:02:57.1]} 8... Nd4 {[%clk 0:02:57.5]} 9. Nxd4 {[%clk 0:02:57.3]} 9... Qxd4
{[%clk 0:02:58.4]} 10. h3 {[%clk 0:02:57.6]} 10... Bf5 {[%clk 0:02:52.1]} 11.
Nc3 {[%clk 0:02:55.9]} 11... O-O-O {[%clk 0:02:47]} 12. Rd1 {[%clk 0:02:54.5]}
12... Qh4 {[%clk 0:02:43.1]} 13. Rxd8+ {[%clk 0:02:52.1]} 13... Qxd8 {[%clk
0:02:44]} 14. Bf4 {[%clk 0:02:46.3]} 14... Bb4 {[%clk 0:02:41.3]} 15. Rd1 {[%clk
0:02:46.3]} 15... Qe7 {[%clk 0:02:38.3]} 16. Ne4 {[%clk 0:02:34.3]} 16... h6
{[%clk 0:02:34.5]} 17. a3 {[%clk 0:02:23]} 17... Ba5 {[%clk 0:02:33.6]} 18. c4
{[%clk 0:02:14.1]} 18... g5 {[%clk 0:02:24.1]} 19. Bh2 {[%clk 0:02:12.2]} 19...
c5 {[%clk 0:02:12.2]} 20. Ng3 {[%clk 0:02:00.9]} 20... Be6 {[%clk 0:02:10.4]}
21. Nf1 {[%clk 0:01:55.1]} 21... h5 {[%clk 0:02:06.5]} 22. Qe3 {[%clk
0:01:34.4]} 22... g4 {[%clk 0:02:00]} 23. hxg4 {[%clk 0:01:22.3]} 23... hxg4
{[%clk 0:01:58.4]} 24. b4 {[%clk 0:01:22.1]} 24... Bb6 {[%clk 0:01:43.9]} 25.
Rc1 {[%clk 0:01:21.2]} 25... Qh4 {[%clk 0:00:56.5]} 26. bxc5 {[%clk 0:01:17.7]}
26... Ba5 {[%clk 0:00:56.7]} 27. c6 {[%clk 0:01:14.8]} 27... Bb6 {[%clk
0:00:56.4]} 28. cxb7+ {[%clk 0:01:14.5]} 28... Kb8 {[%clk 0:00:53.9]} 29. c5
{[%clk 0:01:14]} 29... Ba5 {[%clk 0:00:53.7]} 30. Rd1 {[%clk 0:00:54.6]} 30...
Bc4 {[%clk 0:00:50.4]} 31. Qg3 {[%clk 0:00:54.8]} 31... Bxf1 {[%clk 0:00:29]}
32. Qxh4 {[%clk 0:00:44.2]} 32... Rxh4 {[%clk 0:00:29.9]} 33. Bg3 {[%clk
0:00:41.5]} 33... Rh6 {[%clk 0:00:27.3]} 34. Kxf1 {[%clk 0:00:41]} 34... Kxb7
{[%clk 0:00:27.6]} 35. Ke2 {[%clk 0:00:37.5]} 35... Kc6 {[%clk 0:00:27.2]} 36.
Rc1 {[%clk 0:00:37.1]} 36... Rh8 {[%clk 0:00:22.7]} 37. Rc4 {[%clk 0:00:36.8]}
37... Rb8 {[%clk 0:00:20.7]} 38. Rxg4 {[%clk 0:00:33.5]} 38... Rb2+ {[%clk
0:00:20.9]} 39. Kf3 {[%clk 0:00:33.3]} 39... Rb3+ {[%clk 0:00:21.1]} 40. Ke4
{[%clk 0:00:33.4]} 40... Rxa3 {[%clk 0:00:21.1]} 41. Kf5 {[%clk 0:00:32.9]}
41... Rc3 {[%clk 0:00:10.9]} 42. Kf6 {[%clk 0:00:32.6]} 42... Rxc5 {[%clk
0:00:10.9]} 43. Kxf7 {[%clk 0:00:33.1]} 43... Bc3 {[%clk 0:00:07.9]} 44. e6
{[%clk 0:00:33]} 44... Rf5+ {[%clk 0:00:08.1]} 45. Ke8 {[%clk 0:00:31.3]} 45...
a5 {[%clk 0:00:07.3]} 46. Rc4+ {[%clk 0:00:30]} 46... Kb5 {[%clk 0:00:06.7]} 47.
Rxc3 {[%clk 0:00:30]} 1-0